Cogmind - Beta 15 @@@ ROGUE MODE // 2025.05.15 @ 11:51:32 Player: Eddie Result: Destroyed by 81-WQ7(j) with Overtuned Pulse Rifle Performance ------------- Evolutions (0) 0 Regions Visited (4) 800 Robots Destroyed (12) 60 Value Destroyed (339) 339 Prototype IDs (12) 240 Alien Tech Used (0) 0 Bonus (986) 986 TOTAL SCORE: 2425 Bonus ------- Follower Combat Kills 186 Registered with UFD 300 Met Optimus in HQ 500 Cogmind --------- Core Integrity 0/250 Matter 300/300 Energy 126/150 System Corruption 1% Temperature Warm (134) Movement Hovering (56) Location -9/Scraptown Parts ------- > --- POWER (1) -------- Micro Fission Core > --- PROPULSION (2) --- Antigrav System Antigrav System > --- UTILITY (2) ------ Experimental Sensor Array Signal Interpreter > --- WEAPON (2) ------- Overtuned Pulse Rifle Hypervelocity Coil Gun > --- INVENTORY (5) ---- Light Treads Light Treads Large Storage Unit Rocket Launcher Peak State ------------ > --- POWER ------------ Light Angular Momentum Engine > --- PROPULSION ------- Antigrav System Antigrav System > --- UTILITY ---------- Experimental Sensor Array Signal Interpreter > --- WEAPON ----------- Overtuned Pulse Rifle Hypervelocity Coil Gun > --- INVENTORY -------- Micro Fission Core Light Treads Light Treads Large Storage Unit Rocket Launcher [Rating: 37] Favorites ----------- Power Ion Engine Engine Ion Engine Power Core Micro Fission Core Propulsion Flight Unit Leg Aluminum Leg Hover Unit Antigrav System Flight Unit Flight Unit Utility Signal Interpreter Device Sensor Array Storage Small Storage Unit Processor Signal Interpreter Weapon Light Assault Rifle Energy Gun Overtuned Pulse Rifle Ballistic Gun Light Assault Rifle Launcher Rocket Launcher Special Weapon Mining Laser Build | -11 -10 -10 -10 -9 ------- Run | Yrd Mat Min Sub Scr Slots Evolved . | . . . . . Power . | . . . . . Propulsion . | . . . . . Utility . | . . . . . Weapon . | . . . . . Parts Attached 30 | 6 8 5 1 10 Power 5 | 1 . 2 . 2 Engine 4 | 1 . 2 . 1 Core 1 | . . . . 1 Reactor . | . . . . . Propulsion 11 | 2 4 1 . 4 Treads . | . . . . . Leg 5 | 2 1 . . 2 Wheel . | . . . . . Hover 3 | . . 1 . 2 Flight 3 | . 3 . . . Utility 4 | 1 2 . . 1 Device 2 | . 1 . . 1 Storage 1 | 1 . . . . Processor 1 | . 1 . . . Hackware . | . . . . . Protection . | . . . . . Artifact . | . . . . . Weapon 10 | 2 2 2 1 3 Energy Gun 1 | . . . . 1 Energy Cannon . | . . . . . Ballistic Gun 5 | 2 1 1 . 1 Ballistic Cannon . | . . . . . Launcher 2 | . 1 . 1 . Special Weapon 2 | . . 1 . 1 Impact Weapon . | . . . . . Slashing Weapon . | . . . . . Piercing Weapon . | . . . . . Special Melee Weapon . | . . . . . Unidentified Prototypes . | . . . . . Parts Lost 2 | . . . . 2 Power 1 | . . . . 1 Propulsion 1 | . . . . 1 Utility . | . . . . . Weapon . | . . . . . Highest Loss Streak 1 | . . . . 1 To Critical Strikes . | . . . . . Average Backups 4 | 1 4 5 5 5 Power . | . . . 1 1 Propulsion 2 | 1 2 2 2 2 Utility . | . 1 1 1 1 Weapon 1 | . 1 1 1 1 Tool/Special . | . . . . . Unused Backups 6 | . 3 . . 3 Power . | . . . . . Propulsion 3 | . 1 . . 2 Utility 2 | . 1 . . 1 Weapon 1 | . 1 . . . Tool/Special . | . . . . . Average Slot Usage (%) 92 | . 98 100 92 80 Engine 13 | . 14 14 14 13 Leg 4 | . 13 . . 1 Hover 2 | . . . . 6 Flight 21 | . 14 28 28 20 Device 12 | . 7 14 14 14 Storage 1 | . 6 . . . Processor 13 | . 13 14 14 14 Energy Gun 1 | . . . . 3 Ballistic Gun 17 | . 27 25 13 3 Special Weapon 1 | . . 2 . 2 Peak Build Rating 37 | 6 7 12 8 37 Average Rating 9 | 3 6 7 7 15 On Entrance 5 | . 6 7 8 7 Naked Turns . | . . . . . Heaviest Build 19 | 12 14 8 8 19 Greatest Support 38 | 20 20 12 8 38 Greatest Overweight (x) 1 | 1 1 1 . 1 Average Overweight (x) . | . . . . . Largest Inventory Capacity 8 | 8 8 5 5 5 Average Capacity 5 | 7 6 5 5 5 Most Carried 7 | 2 7 5 5 5 Average Carried 4 | 1 4 5 5 4 Final Capacity 8 | 8 5 5 5 5 Final Carried 5 | 2 5 5 5 4 Class Distribution -------------------- 91% | Mutant 8% | Scavenger-Mutant Dominant Class ---------------- Mutant | -10/Materials Mutant | -10/Mines Mutant | -10/Subcaves Mutant | -9/Scraptown Resources | -11 -10 -10 -10 -9 ----------- Run | Yrd Mat Min Sub Scr Matter Collected 778 | 250 204 122 32 170 Remotely . | . . . . . Salvage Created 468 | . 263 18 47 140 Parts 28 | . 15 2 2 9 Haulers Intercepted 1 | . 1 . . . Recyclers Shooed 1 | . 1 . . . Parts Field Recycled . | . . . . . Retrieved Matter . | . . . . . Parts Self-Destructed 5 | . . . 5 . Prevented . | . . . . . Kills | -11 -10 -10 -10 -9 ------- Run | Yrd Mat Min Sub Scr Combat Hostiles Destroyed 11 | . 7 1 1 2 Guns 10 | . 7 1 . 2 AOE 1 | . . . 1 . Classes Destroyed 5 | . 3 . 1 1 Hauler 1 | . 1 . . . Swarmer 4 | . 3 1 . . Grunt 4 | . 4 . . . Subdweller 1 | . . . 1 . Scrapper 2 | . . . . 2 Best Kill Streak 3 | . 3 1 1 1 Combat Bots Only 3 | . 3 1 1 1 Max Kills in Single Turn 1 | . 1 1 1 1 Gunslinging . | . . . . . Exploded 1 | . . . 1 . Melee . | . . . . . Uniques/NPCs Destroyed . | . . . . . Combat | -11 -10 -10 -10 -9 -------- Run | Yrd Mat Min Sub Scr Hostile Shots Fired 91 | . 41 11 3 36 Missed 30 | . 10 7 1 12 Hits 61 | . 31 4 2 24 Projectile 61 | . 31 4 2 24 Critical Strikes 1 | . . . . 1 Damage Taken 867 | . 371 62 35 399 Core 264 | . 115 37 12 100 Absorbed by Shields . | . . . . . Regen/Repaired (Parts) 11 | . . . . 11 Core Remaining (%) 100 | 100 . . . . Volleys Fired 78 | . 51 10 2 15 Largest 2 | . 2 2 1 2 Hottest 115 | . 40 100 33 115 Shots Fired 143 | . 100 19 2 22 Gun 138 | . 98 18 . 22 Cannon . | . . . . . Launcher 4 | . 2 . 2 . Special 1 | . . 1 . . Kinetic 130 | . 98 18 . 14 Thermal 9 | . . 1 . 8 Explosive 4 | . 2 . 2 . Electromagnetic . | . . . . . Robot Hit Streak 19 | . 19 2 1 3 Robot Miss Streak 8 | . 4 8 . 3 Penetration Max . | . . . . . Secondary Targets . | . . . . . Shots Hit Robots 84 | . 68 4 1 11 Core Hits 30 | . 20 2 4 4 Critical Kills . | . . . . . Critical Parts Destroyed . | . . . . . Critical Strikes . | . . . . . Melee Attacks . | . . . . . Impact . | . . . . . Slashing . | . . . . . Piercing . | . . . . . Sneak Attacks . | . . . . . Combat Hostiles . | . . . . . Follow-up Attacks . | . . . . . Damage Inflicted 920 | . 562 34 153 171 Guns 767 | . 562 34 . 171 Cannons . | . . . . . Explosions 153 | . . . 153 . Melee . | . . . . . Ramming . | . . . . . Kinetic 634 | . 562 34 . 38 Thermal 133 | . . . . 133 Explosive 153 | . . . 153 . Electromagnetic . | . . . . . Impact . | . . . . . Slashing . | . . . . . Piercing . | . . . . . Highest Corruption 1 | . . . . 1 Average Corruption 1 | . . . . 1 Corruption Purged . | . . . . . Corruption Blocked . | . . . . . Overload Shots . | . . . . . Overflow Damage . | . . . . . Projectiles . | . . . . . Explosions . | . . . . . Melee . | . . . . . Knockbacks . | . . . . . Impact . | . . . . . Kinetic . | . . . . . Secondary . | . . . . . Self-Inflicted Damage 10 | . 10 . . . Shots 1 | . 1 . . . Rammed . | . . . . . Targets Rammed . | . . . . . Kicked . | . . . . . Crushed . | . . . . . Highest Temperature 220 | . 19 30 . 220 Average Temperature 59 | . 7 6 . 102 Received Heat Transfer 380 | . 183 29 12 156 Effects 1 | . . . . 1 Interference 1 | . . . . 1 Siege Activations . | . . . . . Martial Activations . | . . . . . Shielding Activations . | . . . . . Robots Disrupted . | . . . . . Combat Hostiles . | . . . . . Robots Corrupted . | . . . . . Combat Hostiles . | . . . . . Parts Fried . | . . . . . Impact Corruptions . | . . . . . Robots Melted . | . . . . . Combat Hostiles . | . . . . . Parts Melted 2 | . . . . 2 Heat Transferred 248 | . . . . 248 Parts Sabotaged . | . . . . . Parts Stolen . | . . . . . Parts Stripped . | . . . . . Power Chain Reactions . | . . . . . Alert | -11 -10 -10 -10 -9 ------- Run | Yrd Mat Min Sub Scr Maximum Alert Level . | . . . . . Low Security (%) 100 | 100 100 100 . . Level 1 . | . . . . . Level 2 . | . . . . . Level 3 . | . . . . . Level 4 . | . . . . . Level 5 . | . . . . . High Security . | . . . . . Max Security . | . . . . . Peak Influence 74 | . 74 46 . . Initial 22 | . . 22 . . Average 15 | . 25 6 . . Influence Increases 379 | . 255 66 58 . Destroy 0b10 Robot/C 240 | . 140 60 40 . Destroy 0b10 Robot/NC 5 | . 5 . . . Destroy Leader 32 | . 22 . 10 . Allied During Kill 14 | . . 6 8 . Successful Hack 24 | . 24 . . . Disable Machine 15 | . 15 . . . Destroy Structure 19 | . 19 . . . Lose Combat Pursuer 30 | . 30 . . . Influence Decreases 379 | . 197 124 40 18 Entered New Map 54 | . . 36 . 18 Time Decay 325 | . 197 88 40 . Squads Dispatched 3 | . 3 . . . Investigation 3 | . 3 . . . Extermination . | . . . . . Reinforcement . | . . . . . Assault . | . . . . . Garrison . | . . . . . Intercept . | . . . . . Searches Triggered . | . . . . . Construction Impeded . | . . . . . Haulers Reinforced . | . . . . . Active Scanning Responses . | . . . . . Cargo Convoy Interrupts . | . . . . . Stealth | -11 -10 -10 -10 -9 --------- Run | Yrd Mat Min Sub Scr Distress Signals 2 | . 2 . . . Communications Jammed . | . . . . . Distress Signals . | . . . . . Times Spotted 47 | . 16 9 4 18 Peak Tracking Total 6 | . 4 3 2 6 Tactical Retreats 4 | . 1 1 . 2 Traps | -11 -10 -10 -10 -9 ------- Run | Yrd Mat Min Sub Scr Traps Triggered 1 | . 1 . . . Indirectly . | . . . . . Trap Hack Attempts . | . . . . . Triggered . | . . . . . Disarmed . | . . . . . Reprogrammed . | . . . . . Reused . | . . . . . Traps Extracted . | . . . . . Installed . | . . . . . Triggered . | . . . . . Machines | -11 -10 -10 -10 -9 ---------- Run | Yrd Mat Min Sub Scr Machines Disabled 1 | . 1 . . . Max in Single Turn 1 | . 1 . . . Machines Repaired . | . . . . . Machines Dismantled . | . . . . . Machines Sabotaged . | . . . . . Overloaded Fab Kills . | . . . . . Hacking | -11 -10 -10 -10 -9 --------- Run | Yrd Mat Min Sub Scr Machines Accessed 14 | . 4 . . 10 Terminals 4 | . 4 . . . Fabricators . | . . . . . Repair Stations . | . . . . . Recycling Units . | . . . . . Scanalyzers . | . . . . . Garrison Access . | . . . . . Total Hacks 102 | . 14 . . 88 Successful 98 | . 10 . . 88 Failed 4 | . 4 . . . Catastrophic 1 | . 1 . . . Database Lockouts . | . . . . . Manual 12 | . 12 . . . Terminals 14 | . 14 . . . Fabricators . | . . . . . Repair Stations . | . . . . . Recycling Units . | . . . . . Scanalyzers . | . . . . . Garrison Access . | . . . . . Terminal Hacks 93 | . 5 . . 88 Record 87 | . . . . 87 Robot Analysis 2 | . 2 . . . Alert Level 1 | . 1 . . . Locate Traps 1 | . 1 . . . Registered Components 1 | . 1 . . . Proto ID Catalog 1 | . . . . 1 Fabricator Hacks . | . . . . . Repair Station Hacks . | . . . . . Recycling Unit Hacks . | . . . . . Scanalyzer . | . . . . . Garrison Access Hacks . | . . . . . Unauthorized Hacks 5 | . 5 . . . Terminals 5 | . 5 . . . Assimilate 1 | . 1 . . . Botnet 4 | . 4 . . . Fabricators . | . . . . . Repair Stations . | . . . . . Recycling Units . | . . . . . Scanalyzers . | . . . . . Garrison Access . | . . . . . Data Cores Recovered . | . . . . . Used . | . . . . . Hacking Detections 4 | . 4 . . . Full Trace Events 2 | . 2 . . . Feedback Events . | . . . . . Feedback Blocked . | . . . . . Robot Schematics Acquired . | . . . . . Robots Built . | . . . . . Authchips . | . . . . . Time . | . . . . . Total Robot Build Rating . | . . . . . Part Schematics Acquired . | . . . . . Parts Built . | . . . . . Authchips . | . . . . . Time . | . . . . . Total Part Build Rating . | . . . . . Parts Repaired . | . . . . . Time . | . . . . . Parts Recycled . | . . . . . Recycled Matter . | . . . . . Retrieved Matter . | . . . . . Retrieved Components . | . . . . . Parts Scanalyzed . | . . . . . Part Schematics Acquired . | . . . . . Parts Damaged . | . . . . . Bothacking | -11 -10 -10 -10 -9 ------------ Run | Yrd Mat Min Sub Scr Used RIF Installer . | . . . . . Robots Hacked . | . . . . . Non-combat . | . . . . . Combat . | . . . . . Robot Hacks Applied . | . . . . . Relay Couplers Released . | . . . . . Fabnet Peak Effective % . | . . . . . Robots Rewired . | . . . . . Allies Hacked . | . . . . . Hacks Repelled . | . . . . . Allies | -11 -10 -10 -10 -9 -------- Run | Yrd Mat Min Sub Scr Total Allies 3 | . . 3 . . Largest Group 3 | . . 3 3 3 Highest-Rated Group 40 | . . 40 40 40 Highest-Rated Ally 16 | . . 16 16 16 Total Orders . | . . . . . Ally Attacks 46 | . . 22 23 1 Total Damage 445 | . . 240 192 13 Kills 12 | . . 8 4 . Allies Corrupted . | . . . . . Allies Melted . | . . . . . Intel | -11 -10 -10 -10 -9 ------- Run | Yrd Mat Min Sub Scr Active Infowar (turns) 1962 | . 379 624 202 757 Sensors 1962 | . 379 624 202 757 Robot Analysis Total 2 | . 2 . . . Derelict Logs Recovered 2 | . . 2 . . Drone Launches . | . . . . . Drone Recoveries . | . . . . . Exploration | -11 -10 -10 -10 -9 ------------- Run | Yrd Mat Min Sub Scr Turns Passed 2341 | 60 698 624 202 757 Spaces Moved 3973 | 49 733 1350 265 1576 Core 23 | 23 . . . . Treads . | . . . . . Legs 238 | 26 181 . . 31 Wheels . | . . . . . Hover 182 | . . 2 . 180 Flight 3530 | . 552 1348 265 1365 Fastest Speed 37 | 50 37 37 37 37 Average Speed 43 | 100 57 37 37 40 Slowest Speed 130 | 120 120 120 37 130 Overloaded Moves . | . . . . . Propulsion Burnouts . | . . . . . Robots Hopped 21 | . 4 13 . 4 Potential Cave-ins . | . . . . . Cave-ins Triggered . | . . . . . Exploration Rate (%) 51 | 3 66 101 15 73 Regions Visited 4 Branch Regions 3 Pre-discovered Areas 6 | . . 2 . 4 Known Exits Taken 3 | . 1 1 1 . Unknown Exits Taken 1 | 1 . . . . Scrap Searched 4 | . . 3 . 1 Spaces Dug 1 | . . 1 . . Terrain Destroyed 38 | . 19 1 18 . Melee . | . . . . . Projectile 1 | . . 1 . . AOE 37 | . 19 . 18 . Terrain Rammed . | . . . . . Walls Destroyed . | . . . . . Machines Disabled . | . . . . . Actions | -11 -10 -10 -10 -9 --------- Run | Yrd Mat Min Sub Scr Total 4465 | 58 926 1444 366 1671 Wait 359 | . 121 78 98 62 Move 3929 | 48 724 1323 264 1570 Hop 19 | . 4 13 . 2 Pick Up 15 | 4 7 2 . 2 Fast Attach 18 | 4 3 4 . 7 Attach 5 | 2 2 . . 1 Detach 3 | . 3 . . . Swap 13 | . 4 5 1 3 Drop 26 | . 7 9 1 9 Fire 78 | . 51 10 2 15 Melee . | . . . . . Ram . | . . . . . Kick . | . . . . . Crush . | . . . . . Escape Stasis . | . . . . . Rewire . | . . . . . Trap . | . . . . . Miscellaneous . | . . . . . Route ------- -11/Scrapyard -10/Materials (discovered 3 exits: *Mat x2 / *Min) -10/Mines (discovered 3 exits: *Mat x2 / *Sub) -10/Subcaves -9/Scraptown (discovered 2 exits: Fac x2) History --------- Turn | Location | Event 3 | -11/Scrapyard | Discovered new exit (range 15) 61 | -11/Scrapyard | Entered Materials 202 | -10/Materials | Discovered new exit (range 16) 219 | -10/Materials | Identified exit to Mines 306 | -10/Materials | Build established: Mutant 675 | -10/Materials | Discovered new exit (range 15) 710 | -10/Materials | Discovered new exit (range 3) 710 | -10/Materials | Identified exit to Materials 759 | -10/Materials | Entered Mines 760 | -10/Mines | Learned location of Storage (-9) 781 | -10/Mines | Met a Derelict bent on vengeance 781 | -10/Mines | Received a Rocket Launcher from a helpful Derelict 794 | -10/Mines | Discovered exit to Materials (range 11) 839 | -10/Mines | Assembled infested the area 839 | -10/Mines | Discovered exit to Materials (range 9) 1041 | -10/Mines | Learned 2 Materials zone layouts 1041 | -10/Mines | Assisted by bots powering up and referring to "LRC-V3" 1045 | -10/Mines | Learned location of Mines (-8) 1071 | -10/Mines | Core integrity fell below 50% 1271 | -10/Mines | Discovered new exit (range 13) 1275 | -10/Mines | Identified exit to Subcaves 1383 | -10/Mines | Entered Subcaves 1383 | -10/Subcaves | Accompanied by 3 allies 1384 | -10/Subcaves | Approached by a straggling Scientist 1560 | -10/Subcaves | Identified exit to Scraptown 1560 | -10/Subcaves | Scientist uncovered a shortcut to Scraptown 1585 | -10/Subcaves | Entered Scraptown 1585 | -9/Scraptown | Accompanied by 3 allies 1618 | -9/Scraptown | Heard Great Nut preacher, LISTEN AND RECITE! 1682 | -9/Scraptown | Visited CR-KLE's Repair Center 1690 | -9/Scraptown | CR-KLE repaired 2 parts 1705 | -9/Scraptown | Visited Cave Peace 1716 | -9/Scraptown | Visited Shadow of the Wyrm 1758 | -9/Scraptown | Visited Cyclists 1768 | -9/Scraptown | Visited UFD Registry 1768 | -9/Scraptown | Registered with UFD as "Gearnuts" 1775 | -9/Scraptown | Visited Fellowship of the Rings 1789 | -9/Scraptown | Visited Assassins FH 1857 | -9/Scraptown | Entered Cyclist Reading Room 1894 | -9/Scraptown | Visited Cartography Club 1935 | -9/Scraptown | Learned location of Upper Caves (-4) 1935 | -9/Scraptown | Learned location of Proximity Caves (-5) 1935 | -9/Scraptown | Learned location of Archives (-4) 1935 | -9/Scraptown | Learned location of Armory (-4) 1935 | -9/Scraptown | Learned 12 Materials zone layouts 1935 | -9/Scraptown | Learned 16 Factory zone layouts 1935 | -9/Scraptown | Learned 12 Research zone layouts 1935 | -9/Scraptown | Learned 8 Access zone layouts 1935 | -9/Scraptown | Learned 4 Storage zone layouts 1935 | -9/Scraptown | Learned 8 Lower Caves zone layouts 1935 | -9/Scraptown | Learned 16 Upper Caves zone layouts 1935 | -9/Scraptown | Learned 24 Upper Caves zone layouts 1935 | -9/Scraptown | Learned 20 Proximity Caves zone layouts 1935 | -9/Scraptown | Learned location of 1 exit from Factory 1935 | -9/Scraptown | Learned location of 2 exits from Lower Caves 1935 | -9/Scraptown | Identified exit to Factory 1951 | -9/Scraptown | Visited LU-1G1's Boring Crew 1986 | -9/Scraptown | Visited Infowarlord's Domain 2026 | -9/Scraptown | Visited Science Guys 2036 | -9/Scraptown | Found Exp. Sensor Array 2046 | -9/Scraptown | Visited Research Penetration Think Tank 2100 | -9/Scraptown | Met Optimus 2100 | -9/Scraptown | Accepted into 0bPrime 2126 | -9/Scraptown | Civil war broke out across Scraptown 2164 | -9/Scraptown | Lost 4 allies 2283 | -9/Scraptown | Optimus destroyed in the chaos of civil war 2304 | -9/Scraptown | Core integrity fell below 20% 2342 | -9/Scraptown | Destroyed by 81-WQ7(j) with Overtuned Pulse Rifle Last Messages --------------- 02293_ 3F-W7Y(j) destroyed. 02296_ TN-S52(E) cannibalizes Lgt. Ion Engine to repair Broken Imp. Deuterium Engine. 02298_ TN-S52(E) cannibalizes Lgt. Deuterium Engine to repair Broken Imp. Deuterium Engine. 02317_ HV Slug penetrates DY-JYN(j). 02317_ HV Slug penetrates Machine. 02317_ HV Slug penetrates Wall. 02319_ Ovr. Pulse Rifle suddenly begins malfunctioning. 02319_ HV Slug penetrates Machine. 02320_ 0U-ZC9(g) destroyed. 02324_ KE-JFK(j) heat short circuits Ovr. Titanium Leg. 02325_ KE-JFK(j) destroyed. 02325_ HV Slug penetrates Wall. 02329_ DY-JYN(j): "I knew I should've stayed in 0b1." 02331_ HV Slug penetrates DY-JYN(j). 02334_ Lgt. Angular Momentum Engine destroyed. 02338_ Acquired 40 matter. 02338_ DY-JYN(j) misfires. 02341_ DY-JYN(j) destroyed. Map ----- +----------------------------------------------------+ | ?????????????????????????????????????????????????? | | ?????????????????????????????????????????????????? | | ?????????????????????????????????????????????????? | | ?????????????????????????????????????????????????? | | ??????????##########???####??????????????????????? | | ??????"???#""|##"""#??## ##??????